Cogmind - Beta 16.1 @@@ ROGUE MODE // 2026.03.27 @ 22:03:16 Player: Ez Result: Destroyed by G-34 Mercenary with Small Laser Performance ------------- Evolutions (0) 0 Regions Visited (1) 200 Robots Destroyed (10) 50 Value Destroyed (233) 233 Prototype IDs (0) 0 Alien Tech Used (0) 0 Bonus (0) 0 TOTAL SCORE: 483 Bonus ------- None Cogmind --------- Core Integrity 0/250 Matter 244/300 Energy 168/265 System Corruption 0% Temperature Cool (8) Movement Walking (120) Location -10/Materials Parts ------- > --- POWER (1) -------- Improved Ion Engine > --- PROPULSION (2) --- Aluminum Leg Aluminum Leg > --- UTILITY (2) ------ Small Storage Unit Weapon Shielding > --- WEAPON (2) ------- (None) > --- INVENTORY (8) ---- Improved Ion Engine Light Treads Light Treads Aluminum Leg Structural Scanner ECM Suite ECM Suite Peak State ------------ > --- POWER ------------ Improved Ion Engine > --- PROPULSION ------- Aluminum Leg Aluminum Leg > --- UTILITY ---------- Small Storage Unit Medium Armor Plating > --- WEAPON ----------- EM Shotgun Assault Rifle > --- INVENTORY -------- Improved Ion Engine Improved Ion Engine Light Treads Light Treads [Rating: 10] Favorites ----------- Power Improved Ion Engine Engine Improved Ion Engine Propulsion Aluminum Leg Treads Light Treads Leg Aluminum Leg Utility Small Storage Unit Storage Small Storage Unit Protection Medium Armor Plating Weapon Assault Rifle Energy Gun EM Shotgun Ballistic Gun Assault Rifle Special Weapon Welding Torch Build | -11 -10 ------- Run | Yrd Mat Slots Evolved . | . . Power . | . . Propulsion . | . . Utility . | . . Weapon . | . . Parts Attached 16 | 5 11 Power 4 | 1 3 Engine 4 | 1 3 Core . | . . Reactor . | . . Propulsion 6 | 2 4 Treads 2 | . 2 Leg 4 | 2 2 Wheel . | . . Hover . | . . Flight . | . . Utility 3 | 1 2 Device . | . . Storage 1 | 1 . Processor . | . . Hackware . | . . Protection 2 | . 2 Artifact . | . . Weapon 3 | 1 2 Energy Gun 1 | . 1 Energy Cannon . | . . Ballistic Gun 1 | 1 . Ballistic Cannon . | . . Launcher . | . . Special Weapon 1 | . 1 Impact Weapon . | . . Slashing Weapon . | . . Piercing Weapon . | . . Special Melee Weapon . | . . Unidentified Prototypes . | . . Parts Lost 7 | . 7 Power 1 | . 1 Propulsion 2 | . 2 Utility 1 | . 1 Weapon 3 | . 3 Highest Loss Streak 3 | . 3 To Critical Strikes . | . . Average Backups 5 | 1 6 Power 1 | . 1 Propulsion 4 | 1 4 Utility . | . . Weapon . | . . Tool/Special . | . . Unused Backups 5 | . 5 Power . | . . Propulsion 2 | . 2 Utility 3 | . 3 Weapon . | . . Tool/Special . | . . Average Slot Usage (%) 76 | . 76 Engine 12 | . 12 Treads 1 | . 1 Leg 26 | . 26 Storage 14 | . 14 Protection 6 | . 6 Energy Gun 1 | . 1 Ballistic Gun 12 | . 12 Peak Build Rating 10 | 5 10 Average Rating 6 | 3 6 On Entrance 2 | . 5 Avg Prop Armor Cover (%) . | . . Naked Turns . | . . Heaviest Build 24 | 12 24 Greatest Support 40 | 20 40 Greatest Overweight (x) 2 | 2 1 Average Overweight (x) . | . . Largest Inventory Capacity 8 | 8 8 Average Capacity 7 | 6 8 Most Carried 8 | 2 8 Average Carried 5 | 1 6 Final Capacity 8 | 8 8 Final Carried 7 | 2 7 Class Distribution -------------------- 100% | Mutant Dominant Class ---------------- Mutant | -10/Materials Resources | -11 -10 ----------- Run | Yrd Mat Matter Collected 440 | 130 310 Remotely . | . . Salvage Created 285 | . 285 Parts 14 | . 14 Haulers Intercepted . | . . Recyclers Shooed . | . . Parts Field Recycled . | . . Retrieved Matter . | . . Parts Self-Destructed . | . . Prevented . | . . Parts Restored . | . . Kills | -11 -10 ------- Run | Yrd Mat Combat Hostiles Destroyed 10 | . 10 Guns 10 | . 10 Classes Destroyed 2 | . 2 Swarmer 5 | . 5 Grunt 5 | . 5 Best Kill Streak 3 | . 3 Combat Bots Only 3 | . 3 Max Kills in Single Turn 1 | . 1 Gunslinging . | . . Exploded . | . . Melee . | . . Uniques/NPCs Destroyed . | . . Combat | -11 -10 -------- Run | Yrd Mat Hostile Shots Fired 153 | . 153 Missed 50 | . 50 Hits 103 | . 103 Projectile 103 | . 103 Damage Taken 1109 | . 1109 Core 259 | . 259 Absorbed by Shields . | . . Core Remaining (%) 100 | 100 . Volleys Fired 57 | . 57 Largest 2 | . 2 Hottest 65 | . 65 Shots Fired 66 | . 66 Gun 56 | . 56 Cannon . | . . Launcher . | . . Special 10 | . 10 Kinetic 47 | . 47 Thermal 10 | . 10 Explosive . | . . Electromagnetic 9 | . 9 Robot Hit Streak 13 | . 13 Robot Miss Streak 3 | . 3 Penetration Max . | . . Secondary Targets . | . . Shots Hit Robots 46 | . 46 Core Hits 16 | . 16 Critical Kills . | . . Critical Parts Destroyed . | . . Critical Strikes . | . . Melee Attacks . | . . Impact . | . . Slashing . | . . Piercing . | . . Sneak Attacks . | . . Combat Hostiles . | . . Follow-up Attacks . | . . Damage Inflicted 533 | . 533 Guns 515 | . 515 Cannons . | . . Explosions . | . . Melee . | . . Ramming . | . . Kinetic 419 | . 419 Thermal 18 | . 18 Explosive . | . . Electromagnetic 96 | . 96 Impact . | . . Slashing . | . . Piercing . | . . Highest Corruption . | . . Average Corruption . | . . Corruption Purged . | . . Corruption Blocked . | . . Overload Shots . | . . Overflow Damage . | . . Projectiles . | . . Explosions . | . . Melee . | . . Knockbacks . | . . Impact . | . . Kinetic . | . . Secondary . | . . Self-Inflicted Damage . | . . Shots . | . . Rammed . | . . Targets Rammed . | . . Kicked . | . . Crushed . | . . Highest Temperature 72 | . 72 Average Temperature 37 | . 37 Received Heat Transfer 486 | . 486 Siege Activations . | . . Martial Activations . | . . Shielding Activations . | . . Robots Disrupted . | . . Combat Hostiles . | . . Robots Corrupted . | . . Combat Hostiles . | . . Parts Fried . | . . Impact Corruptions . | . . Robots Melted . | . . Combat Hostiles . | . . Parts Melted . | . . Heat Transferred 175 | . 175 Parts Sabotaged . | . . Parts Stolen . | . . Parts Stripped . | . . Power Chain Reactions . | . . Alert | -11 -10 ------- Run | Yrd Mat Maximum Alert Level . | . . Low Security (%) 100 | 100 100 Level 1 . | . . Level 2 . | . . Level 3 . | . . Level 4 . | . . Level 5 . | . . High Security . | . . Max Security . | . . Peak Influence 52 | . 52 Initial . | . . Average 7 | . 7 Influence Increases 255 | . 255 Destroy 0b10 Robot/C 200 | . 200 Destroy Leader 40 | . 40 Lose Combat Pursuer 15 | . 15 Influence Decreases 255 | . 255 Time Decay 221 | . 221 Lost Part 34 | . 34 Squads Dispatched 1 | . 1 Investigation . | . . Extermination . | . . Reinforcement 1 | . 1 Assault . | . . Garrison . | . . Intercept . | . . Searches Triggered . | . . Construction Impeded . | . . Haulers Reinforced . | . . Active Scanning Responses . | . . Cargo Convoy Interrupts . | . . Stealth | -11 -10 --------- Run | Yrd Mat Distress Signals 2 | . 2 Communications Jammed . | . . Distress Signals . | . . Times Spotted 20 | . 20 Peak Tracking Total 5 | . 5 Tactical Retreats 1 | . 1 Traps | -11 -10 ------- Run | Yrd Mat Traps Triggered 2 | . 2 Indirectly . | . . Trap Hack Attempts . | . . Triggered . | . . Disarmed . | . . Reprogrammed . | . . Reused . | . . Traps Extracted . | . . Installed . | . . Triggered . | . . Machines | -11 -10 ---------- Run | Yrd Mat Machines Disabled . | . . Max in Single Turn . | . . Machines Repaired . | . . Machines Dismantled . | . . Machines Sabotaged . | . . Overloaded Fab Kills . | . . Hacking | -11 -10 --------- Run | Yrd Mat Machines Accessed 2 | . 2 Terminals 2 | . 2 Fabricators . | . . Repair Stations . | . . Recycling Units . | . . Scanalyzers . | . . Garrison Access . | . . Total Hacks 2 | . 2 Successful . | . . Failed 2 | . 2 Catastrophic . | . . Database Lockouts . | . . Manual 2 | . 2 Terminals 2 | . 2 Fabricators . | . . Repair Stations . | . . Recycling Units . | . . Scanalyzers . | . . Garrison Access . | . . Terminal Hacks . | . . Fabricator Hacks . | . . Repair Station Hacks . | . . Recycling Unit Hacks . | . . Scanalyzer . | . . Garrison Access Hacks . | . . Unauthorized Hacks . | . . Terminals . | . . Fabricators . | . . Repair Stations . | . . Recycling Units . | . . Scanalyzers . | . . Garrison Access . | . . Data Cores Recovered . | . . Used . | . . Hacking Detections 2 | . 2 Full Trace Events . | . . Feedback Events . | . . Feedback Blocked . | . . Robot Schematics Acquired . | . . Robots Built . | . . Authchips . | . . Time . | . . Total Robot Build Rating . | . . Part Schematics Acquired . | . . Parts Built . | . . Authchips . | . . Time . | . . Total Part Build Rating . | . . Part Studies Acquired . | . . Parts Repaired . | . . Time . | . . Parts Recycled . | . . Recycled Matter . | . . Retrieved Matter . | . . Retrieved Components . | . . Parts Scanalyzed . | . . Part Schematics Acquired . | . . Parts Damaged . | . . Bothacking | -11 -10 ------------ Run | Yrd Mat Used RIF Installer . | . . Robots Hacked . | . . Non-combat . | . . Combat . | . . Robot Hacks Applied . | . . Relay Couplers Released . | . . Fabnet Peak Effective % . | . . Robots Rewired . | . . Allies Hacked . | . . Hacks Repelled . | . . Allies | -11 -10 -------- Run | Yrd Mat Total Allies . | . . Largest Group . | . . Highest-Rated Group . | . . Highest-Rated Ally . | . . Total Orders . | . . Ally Attacks . | . . Total Damage . | . . Kills . | . . Allies Corrupted . | . . Allies Melted . | . . Intel | -11 -10 ------- Run | Yrd Mat Active Infowar (turns) . | . . Robot Analysis Total . | . . Derelict Logs Recovered . | . . Drone Launches . | . . Drone Recoveries . | . . Exploration | -11 -10 ------------- Run | Yrd Mat Turns Passed 1370 | 70 1300 Spaces Moved 453 | 58 395 Core 17 | 17 . Treads 35 | . 35 Legs 401 | 41 360 Wheels . | . . Hover . | . . Flight . | . . Fastest Speed 50 | 50 120 Average Speed 145 | 104 151 Slowest Speed 190 | 150 190 Overloaded Moves . | . . Propulsion Burnouts . | . . Robots Hopped . | . . Potential Cave-ins . | . . Cave-ins Triggered . | . . Exploration Rate (%) 26 | 5 48 Regions Visited 1 Branch Regions . Pre-discovered Areas . | . . Known Exits Taken . | . . Unknown Exits Taken 1 | 1 . Scrap Searched . | . . Spaces Dug . | . . Terrain Destroyed . | . . Melee . | . . Projectile . | . . AOE . | . . Terrain Rammed . | . . Walls Destroyed . | . . Machines Disabled . | . . Actions | -11 -10 --------- Run | Yrd Mat Total 1091 | 65 1026 Wait 547 | 1 546 Move 452 | 57 395 Hop . | . . Pick Up 12 | 2 10 Fast Attach 9 | 5 4 Attach 6 | . 6 Detach 2 | . 2 Swap 4 | . 4 Drop 2 | . 2 Fire 57 | . 57 Melee . | . . Ram . | . . Kick . | . . Crush . | . . Escape Stasis . | . . Rewire . | . . Trap . | . . Miscellaneous . | . . Route ------- -11/Scrapyard -10/Materials (discovered 3 exits: [*Mat] / [*Min] / [*Sub]) History --------- Turn | Location | Event 2 | -11/Scrapyard | Met Revision 17 5 | -11/Scrapyard | Discovered new exit (range 13) 71 | -11/Scrapyard | Entered Materials 226 | -10/Materials | Discovered new exit (range 7) 305 | -10/Materials | Build established: Mutant 417 | -10/Materials | Discovered new exit (range 15) 1227 | -10/Materials | Core integrity fell below 50% 1233 | -10/Materials | Lost 3 parts (2n1w) 1265 | -10/Materials | Discovered new exit (range 11) 1273 | -10/Materials | Core integrity fell below 20% 1371 | -10/Materials | Destroyed by G-34 Mercenary with Small Laser Last Messages --------------- Acquired 13 matter. K-01 Serf collects debris. K-01 Serf destroyed. Acquired Welding Torch. K-01 Serf collects debris. U-05 Engineer destroyed. K-01 Serf collects debris. Imp. Ion Engine destroyed. K-01 Serf collects debris. G-34 Mercenary heat short circuits Ion Engine. Welding Torch destroyed. Acquired 10 matter. Acquired 44 matter. EXIT=FOUND Acquired Weapon Shielding. Triggered EMP Trap. A bubble of electromagnetic force engulfs the area. Door malfunctions. Acquired ECM Suite. Map ----- +----------------------------------------------------+ | | | | | | | | | ??????????###########????????????????????????????? | | ??????????# #???#########????????????????? | | ??????????? #???# #????????????????? | | ????????????? * #???# !! #????????????????? | | ????????????? ##### !! #????????????????? | | ??????????#+##+##+### # #????????????????? | | ??????????# / #????????????????? | | ??????????# ######! ######+##????????????????? | | ??????????# #????## ##????# #?????????????????? | | ??????????# #???? # #????##+#####?????????????? | | ??????????# #?? # ###### #?????????????? | | ??????????# # # ## # #?????????????? | | ??????????# + "" # ## < # =||#?????????????? | | ??????????# #### "Y # ## # =|!#?????????????? | | ??????????# #?????" # ## + =|!#?????????????? | | ??????????# #???????/# ## g# ! #?????????????? | | ??????????# #????????# ## ########??????????#### | | ??????????# ##########/## #?????????????????# | | ??????????# + # #?????????????????# T | | ??????????# ### """ # #?????????????????# | | ??????????# #?# """ # #?????????????????#### | | ?????????? #?# """ /@ ###################### | | ????????? #?# """ # a * =% | | ???????? #?# R" # == = | | ????????# #?# """ # w *%! * | | ????????# #?# ######## ############### | | ????????? #?###########??????# #?????????????# | | ????????? ???????????????????# #?????????????# | | ????????? ???????????????????# #??????######## | | ????????# ???????????????????# #??????? # | | ????????# ???????????????????# #????? """"" # | | ????????# ???????????????????# #????# """"" # | | ????????# ??????????????????? ????# """"" # | | ????????? ??????????????????? ????# # | | ??????????????????????????????+ #???# """"" + | | ??????????????????????????????# #???# """"" # | | ??????????????????????????????# #???? """"" # | | ??????????????????????????????#### #?????? # | | ?????????????????????????????????? ??????######### | | ?????????????????????????????????????????????????# | | ?????????????????????????????????????????????????# | | ?????????????????????????????????????????????????# | | ?????????????????????????????????????????????????# | | ?????????????????????????????????????????????????# | | ?????????????????????????????????????????????????? | | ?????????????????????????????????????????????????? | +----------------------------------------------------+ Best States ------------- Heat Dissipation 25 Energy Generation 12 Energy Capacity 265 Matter Stores 292 Matter Capacity 300 Sight Range 16 Terrain Scan Density 10 Armor Coverage 225 Weapon Shielding 33 Evasion (%) 55 Recoil Reduction 2 Item Schematics ----------------- None Robot Schematics ------------------ None Fabricated ------------ Nothing Repaired ---------- Nothing Studied --------- None Alien Tech Used ----------------- None Achievements -------------- None Challenges ------------ None Game ------ Seed ShadeBombardmentCasing Manual? 0 Play Time 00:09:27 Cumulative 35.5 hours Start 2026.03.27 @ 21:53:41 End 2026.03.27 @ 22:03:16 Sessions 1 Manual Loads 0 Difficulty Rogue Special Mode None Game No. 95 Rogue 92 Adventurer 3 Explorer 0 Win Type - Total 0 Types 0/0/0/0/0/0/0/0/0/0 Lore% 7 Gallery% 20 Achievement% 17 Wizard Run 0 Options --------- Layout 1 ASCII 0 Keyboard 1 Movement Numpad Keybinds 0 Fullscreen 2 Font 32/SmallcapsGlow Map View 50x35 Zoom Use 0% Tactical HUD 0 Map Filters NONE Filters NONE Steam 1 RUN: 1ce7bb22-0966-4c71-8979-b84da0e86fe0